[Event "KAZ Cup Women 2019"]
[Site "Almaty"]
[Date "2019.12.12"]
[Round "1.1"]
[White "Tomilova, Elena"]
[Black "Dauletova, Gulmira"]
[Result "1-0"]
[ECO "B47"]
[WhiteElo "2341"]
[BlackElo "2250"]
[Annotator "ChessBase"]
[PlyCount "81"]
[EventDate "2019.12.12"]
[EventType "tourn"]
[EventCountry "KAZ"]
[SourceTitle "playchess.com"]
[Source "ChessBase"]
[SourceQuality "1"]
[TimeControl "40/5400+30:1800+30"]

1. e4 {[%emt 0:00:00]} c5 {[%emt 0:02:59]} 2. Nf3 {[%emt 0:00:00]} e6 {[%emt 0:00:25]} 3. d4 {[%emt 0:00:00]} cxd4 {[%emt 0:00:46]} 4. Nxd4 {[%emt 0:00:00]} Nc6 {[%emt 0:00:30]} 5. Nc3 {[%emt 0:00:04]} Qc7 {[%emt 0:00:18]} 6. g3 {[%emt 0:00:09]} a6 {[%emt 0:04:41]} 7. Bg2 {[%emt 0:00:29]} Nf6 {[%emt 0:04:17]} 8. O-O {[%emt 0:01:51]} h5 {[%emt 0:10:51]} 9. Nf3 {[%emt 0:00:30]} Bd6 10. Bg5 {[%emt 0:15:24]} Ng4 {[%emt 0:01:37]} 11. Qd2 {[%emt 0:33:44]} Na5 {[%emt 0:18:17]} 12. b3 f6 {[%emt 0:25:32]} 13. Bf4 {[%emt 0:02:25]} Bxf4 {[%emt 0:00:23]} 14. gxf4 b5 15. a4 {[%emt 0:05:38]} b4 {[%emt 0:03:52]} 16. Ne2 Rb8 {[%emt 0:02:36]} 17. h3 {[%emt 0:02:07]} Nh6 {[%emt 0:01:32]} 18. Nh4 {[%emt 0:00:57]} Nf7 19. f5 Nc6 {[%emt 0:03:15]} 20. Nf4 {[%emt 0:10:11]} Nce5 {[%emt 0:04:42]} 21. Rac1 Qd6 {[%emt 0:08:57]} 22. Qe2 {[%emt 0:10:27]} Ng4 {[%emt 0:01:24]} 23. Nhg6 {[%emt 0:03:52]} Rh6 {[%emt 0:01:37]} 24. hxg4 hxg4 {[%emt 0:00:13]} 25. Qxg4 {[%emt 0:01:20]} Ng5 {[%emt 0:02:27]} 26. e5 Qb6 27. Rfe1 {[%emt 0:04:15]} Kf7 {[%emt 0:01:31]} 28. Rcd1 Qc7 {[%emt 0:00:04]} 29. Rd2 {[%emt 0:04:00]} Rb6 {[%emt 0:00:21]} 30. exf6 {[%emt 0:00:57]} gxf6 31. Ne5+ {[%emt 0:00:56]} fxe5 {[%emt 0:01:45]} 32. Qxg5 {[%emt 0:01:36]} exf5 {[%emt 0:00:20]} 33. Nd5 {[%emt 0:00:30]} Qc5 {[%emt 0:00:30]} 34. Nxb6 {[%emt 0:00:30]} Rxb6 {[%emt 0:00:30]} 35. Qxf5+ {[%emt 0:00:30]} Rf6 {[%emt 0:00:30]} 36. Qh7+ {[%emt 0:00:30]} Kf8 {[%emt 0:00:30]} 37. Qh8+ {[%emt 0:00:30]} Kf7 {[%emt 0:00:43]} 38. Bd5+ {[%emt 0:00:00]} Kg6 {[%emt 0:00:05]} 39. Rxe5 {[%emt 0:00:52]} Qc3 {[%emt 0:00:54]} 40. Qh5+ {[%emt 0:00:30]} Kg7 {[%emt 0:00:04]} 41. Re7+ {[%emt 0:30:17]} 1-0

[Event "KAZ Cup Women 2019"]
[Site "Almaty"]
[Date "2019.12.12"]
[Round "1.2"]
[White "Davletbayeva, Madina"]
[Black "Gvetadze, Sofio"]
[Result "0-1"]
[ECO "B31"]
[WhiteElo "2238"]
[BlackElo "2301"]
[Annotator "ChessBase"]
[PlyCount "80"]
[EventDate "2019.12.12"]
[EventType "tourn"]
[EventCountry "KAZ"]
[SourceTitle "playchess.com"]
[Source "ChessBase"]
[SourceQuality "1"]
[TimeControl "40/5400+30:1800+30"]

1. e4 {[%emt 0:00:00]} c5 {[%emt 0:00:00]} 2. Nf3 {[%emt 0:00:15]} Nc6 {[%emt 0:00:00]} 3. Bb5 {[%emt 0:00:47]} g6 {[%emt 0:01:00]} 4. Bxc6 {[%emt 0:00:59]} dxc6 5. d3 {[%emt 0:01:06]} Bg7 {[%emt 0:01:01]} 6. h3 {[%emt 0:01:09]} Qc7 {[%emt 0:00:52]} 7. O-O {[%emt 0:03:19]} Nf6 {[%emt 0:02:53]} 8. Be3 {[%emt 0:05:17]} Nd7 {[%emt 0:02:48]} 9. Qc1 {[%emt 0:04:13]} h6 {[%emt 0:00:45]} 10. Nc3 {[%emt 0:02:24]} e5 {[%emt 0:00:35]} 11. a4 a5 12. Nd2 {[%emt 0:04:30]} g5 {[%emt 0:02:18]} 13. Ne2 {[%emt 0:04:12]} b6 {[%emt 0:00:47]} 14. Ng3 Nf6 {[%emt 0:00:44]} 15. Nc4 {[%emt 0:02:57]} Be6 {[%emt 0:01:46]} 16. b3 {[%emt 0:03:21]} O-O-O {[%emt 0:12:36]} 17. Qb2 Nd7 {[%emt 0:02:07]} 18. c3 {[%emt 0:12:18]} Bf8 {[%emt 0:09:20]} 19. d4 exd4 {[%emt 0:04:25]} 20. cxd4 {[%emt 0:10:56]} Bg7 {[%emt 0:06:13]} 21. Rac1 {[%emt 0:04:49]} Kb8 {[%emt 0:03:13]} 22. Rfd1 {[%emt 0:03:41]} Rhe8 {[%emt 0:02:57]} 23. Qb1 cxd4 {[%emt 0:04:36]} 24. Bxd4 {[%emt 0:05:14]} Bxd4 25. Rxd4 {[%emt 0:00:48]} Bxc4 {[%emt 0:00:54]} 26. Rdxc4 {[%emt 0:02:19]} Ne5 {[%emt 0:00:37]} 27. R4c3 {[%emt 0:03:27]} Rd2 28. Nf1 {[%emt 0:04:29]} Rd4 {[%emt 0:10:01]} 29. Qc2 {[%emt 0:04:29]} Red8 {[%emt 0:01:38]} 30. Qe2 {[%emt 0:01:54]} Nd3 {[%emt 0:01:20]} 31. R1c2 c5 32. Ne3 {[%emt 0:08:41]} Nb4 {[%emt 0:06:29]} 33. Rc1 Rxe4 {[%emt 0:02:09]} 34. Qb5 {[%emt 0:01:54]} Ka7 {[%emt 0:09:56]} 35. Nc4 Na2 {[%emt 0:00:16]} 36. Nxa5 {[%emt 0:04:43]} Rd6 37. f3 {[%emt 0:03:26]} Nxc3 {[%emt 0:00:46]} 38. Rxc3 {[%emt 0:00:00]} Rd1+ {[%emt 0:06:40]} 39. Kf2 {[%emt 0:00:14]} Rd2+ {[%emt 0:00:30]} 40. Kf1 {[%emt 0:00:36]} Re6 0-1

[Event "KAZ Cup Women 2019"]
[Site "Almaty"]
[Date "2019.12.12"]
[Round "1.3"]
[White "Khomeriki, Nino"]
[Black "Nakhbayeva, Guliskhan"]
[Result "1/2-1/2"]
[ECO "E18"]
[WhiteElo "2355"]
[BlackElo "2296"]
[Annotator "ChessBase"]
[PlyCount "73"]
[EventDate "2019.12.12"]
[EventType "tourn"]
[EventCountry "KAZ"]
[SourceTitle "playchess.com"]
[Source "ChessBase"]
[SourceQuality "1"]
[TimeControl "40/5400+30:1800+30"]

1. d4 {[%emt 0:00:00]} Nf6 {[%emt 0:00:00]} 2. c4 {[%emt 0:00:00]} e6 {[%emt 0:00:00]} 3. Nf3 b6 {[%emt 0:00:01]} 4. g3 {[%emt 0:00:00]} Bb7 {[%emt 0:00:08]} 5. Bg2 {[%emt 0:00:00]} Be7 {[%emt 0:00:03]} 6. O-O {[%emt 0:00:05]} O-O {[%emt 0:00:05]} 7. Nc3 Ne4 {[%emt 0:00:02]} 8. Bd2 {[%emt 0:00:43]} d5 {[%emt 0:00:04]} 9. cxd5 {[%emt 0:05:01]} exd5 {[%emt 0:08:56]} 10. Qc2 {[%emt 0:02:23]} Nd7 {[%emt 0:02:17]} 11. Bf4 {[%emt 0:06:57]} c5 {[%emt 0:02:38]} 12. Rfd1 {[%emt 0:05:40]} Rc8 {[%emt 0:14:42]} 13. Rac1 {[%emt 0:11:20]} Qe8 {[%emt 0:12:05]} 14. Be3 Nxc3 {[%emt 0:05:44]} 15. bxc3 {[%emt 0:04:43]} c4 16. Bh3 {[%emt 0:01:54]} Bc6 {[%emt 0:07:37]} 17. Re1 {[%emt 0:06:09]} Ba3 {[%emt 0:05:00]} 18. Rb1 {[%emt 0:02:51]} Qe7 19. Ne5 {[%emt 0:11:20]} Bd6 {[%emt 0:08:07]} 20. Nxc6 {[%emt 0:02:58]} Rxc6 {[%emt 0:00:03]} 21. Rb5 Nf6 {[%emt 0:12:15]} 22. Bg5 {[%emt 0:02:56]} Qe4 {[%emt 0:01:32]} 23. Qa4 a6 {[%emt 0:10:02]} 24. Qxa6 {[%emt 0:11:45]} Qc2 25. Rc1 {[%emt 0:12:02]} Qxe2 {[%emt 0:00:50]} 26. Bxf6 Bf4 27. gxf4 {[%emt 0:05:50]} Rxf6 {[%emt 0:03:29]} 28. f5 {[%emt 0:00:16]} Qh5 {[%emt 0:01:56]} 29. Bg2 {[%emt 0:00:45]} Qxf5 {[%emt 0:00:22]} 30. Qb7 {[%emt 0:01:10]} Qxf2+ {[%emt 0:01:31]} 31. Kh1 {[%emt 0:00:03]} Rh6 {[%emt 0:01:26]} 32. Rf1 {[%emt 0:00:31]} Qg3 {[%emt 0:00:48]} 33. h3 {[%emt 0:01:00]} Rxh3+ {[%emt 0:01:38]} 34. Bxh3 {[%emt 0:00:04]} Qxh3+ {[%emt 0:00:03]} 35. Kg1 Qg3+ {[%emt 0:00:08]} 36. Kh1 {[%emt 0:00:09]} Qh3+ {[%emt 0:00:05]} 37. Kg1 1/2-1/2

[Event "KAZ Cup Women 2019"]
[Site "Almaty"]
[Date "2019.12.12"]
[Round "1.4"]
[White "Balabayeva, Xeniya"]
[Black "Gevorgyan, Maria"]
[Result "0-1"]
[ECO "B36"]
[WhiteElo "2119"]
[BlackElo "2255"]
[Annotator "ChessBase"]
[PlyCount "106"]
[EventDate "2019.12.12"]
[EventType "tourn"]
[EventCountry "KAZ"]
[SourceTitle "playchess.com"]
[Source "ChessBase"]
[SourceQuality "1"]
[TimeControl "40/5400+30:1800+30"]

1. e4 {[%emt 0:00:00]} c5 {[%emt 0:00:00]} 2. Nf3 {[%emt 0:00:00]} Nc6 {[%emt 0:00:00]} 3. d4 {[%emt 0:00:00]} cxd4 {[%emt 0:00:00]} 4. Nxd4 {[%emt 0:00:00]} g6 {[%emt 0:00:00]} 5. c4 {[%emt 0:00:00]} Nf6 {[%emt 0:00:23]} 6. Nc3 {[%emt 0:00:11]} Nxd4 {[%emt 0:00:36]} 7. Qxd4 {[%emt 0:00:10]} d6 {[%emt 0:00:06]} 8. Be3 {[%emt 0:01:24]} Bg7 {[%emt 0:00:04]} 9. f3 {[%emt 0:00:07]} O-O {[%emt 0:00:06]} 10. Qd2 {[%emt 0:00:02]} a5 11. Na4 Nd7 {[%emt 0:15:48]} 12. O-O-O {[%emt 0:01:38]} Qc7 {[%emt 0:12:12]} 13. Kb1 Nc5 14. Nc3 {[%emt 0:19:00]} Be6 {[%emt 0:05:22]} 15. g4 {[%emt 0:08:44]} a4 {[%emt 0:00:32]} 16. Be2 {[%emt 0:07:30]} Qa5 {[%emt 0:34:23]} 17. Bd4 {[%emt 0:12:25]} Rfc8 {[%emt 0:07:22]} 18. Bxg7 {[%emt 0:13:27]} Kxg7 {[%emt 0:00:46]} 19. h4 {[%emt 0:01:59]} h6 {[%emt 0:04:43]} 20. f4 {[%emt 0:02:45]} Nd7 {[%emt 0:05:07]} 21. Qd4+ {[%emt 0:04:41]} f6 {[%emt 0:00:05]} 22. Nd5 {[%emt 0:04:46]} Qc5 {[%emt 0:04:17]} 23. Nxe7 {[%emt 0:10:15]} Re8 24. Nd5 {[%emt 0:04:05]} Bxd5 {[%emt 0:00:42]} 25. cxd5 {[%emt 0:01:41]} Rac8 {[%emt 0:02:44]} 26. Bf3 {[%emt 0:01:41]} Qc2+ {[%emt 0:00:58]} 27. Ka1 {[%emt 0:00:05]} a3 {[%emt 0:00:48]} 28. Rb1 {[%emt 0:04:01]} Rc4 {[%emt 0:02:15]} 29. Qd1 {[%emt 0:00:36]} Nc5 {[%emt 0:03:07]} 30. Qxc2 {[%emt 0:01:52]} Rxc2 {[%emt 0:00:02]} 31. bxa3 {[%emt 0:00:42]} Rc3 32. Rhf1 {[%emt 0:01:10]} Rxa3 {[%emt 0:00:50]} 33. Rb6 {[%emt 0:00:43]} Rea8 {[%emt 0:01:42]} 34. Rf2 {[%emt 0:00:33]} Re3 {[%emt 0:00:02]} 35. Rf1 {[%emt 0:00:37]} Rea3 {[%emt 0:01:52]} 36. Rf2 {[%emt 0:00:16]} Re3 {[%emt 0:00:05]} 37. Rf1 {[%emt 0:00:18]} Kf7 {[%emt 0:00:48]} 38. Kb1 {[%emt 0:01:01]} Raa3 {[%emt 0:00:16]} 39. Bh1 {[%emt 0:00:13]} Ke7 {[%emt 0:00:39]} 40. Rc1 {[%emt 0:00:36]} Kd7 {[%emt 0:00:32]} 41. Rb4 {[%emt 0:30:42]} Rg3 {[%emt 0:30:45]} 42. e5 {[%emt 0:00:14]} Rxg4 {[%emt 0:00:00]} 43. e6+ {[%emt 0:00:00]} Kc7 {[%emt 0:00:00]} 44. Rxc5+ {[%emt 0:00:00]} dxc5 {[%emt 0:00:00]} 45. Rxb7+ {[%emt 0:00:00]} Kxb7 {[%emt 0:00:00]} 46. d6+ {[%emt 0:00:00]} Kc8 {[%emt 0:00:00]} 47. e7 {[%emt 0:00:00]} Rg1+ {[%emt 0:00:00]} 48. Kc2 {[%emt 0:00:00]} Re1 {[%emt 0:00:00]} 49. Bc6 Rxa2+ {[%emt 0:00:00]} 50. Kd3 {[%emt 0:00:00]} Ra7 {[%emt 0:00:00]} 51. e8=Q+ {[%emt 0:00:00]} Rxe8 {[%emt 0:00:00]} 52. Bxe8 {[%emt 0:00:00]} Kd8 {[%emt 0:00:00]} 53. Bxg6 {[%emt 0:00:00]} Kd7 {[%emt 0:00:00] Kd4} 0-1

[Event "KAZ Cup Women 2019"]
[Site "Almaty"]
[Date "2019.12.12"]
[Round "1.5"]
[White "Kim, Kristina"]
[Black "Ankudinova, Yelena"]
[Result "1-0"]
[ECO "D00"]
[WhiteElo "1975"]
[BlackElo "2093"]
[Annotator "NA"]
[PlyCount "89"]
[EventDate "2019.12.12"]
[EventType "tourn"]
[EventCountry "KAZ"]
[SourceTitle "playchess.com"]
[Source "ChessBase"]
[SourceQuality "1"]
[TimeControl "40/5400+30:1800+30"]

{[%evp 8,74,8,0,20,19,29,25,16,11,42,41,32767,104,126,130,133,56,60,54,112,90,116,110,135,115,189,214,253,241,250,182,184,150,200,188,198,199,232,209,257,204,238,203,217,210,216,210,222,191,189,197,219,221,333,246,32767,32767,281,32767,32767,32767,591,660,32767,32767,32767,32767,700]} 1. d4 {[%emt 0:00:38]} d5 {[%emt 0:00:00]} 2. Bf4 {[%emt 0:00:08]} Nf6 {[%emt 0:00:19]} 3. e3 {[%emt 0:00:10]} e6 {[%emt 0:00:28]} 4. Nf3 {[%emt 0:00:33]} Bd6 {[%emt 0:00:22]} 5. Bg3 {[%emt 0:00:17]} Ne4 {[%emt 0:00:53]} 6. Nbd2 {[%emt 0:01:43]} Nxg3 {[%emt 0:04:57] D02: 1 d4 d5 2 Nf3 sidelines, including 2...Nf6 3 g3 and 2...Nf6 3 Bf4} 7. hxg3 {[%emt 0:00:07]} Nd7 {[%emt 0:01:41]} 8. c4 {[%emt 0:02:15]} dxc4 $146 {[%emt 0:03:43]} ({Predecessor:} 8... c6 9. Qc2 Nf6 10. Be2 Bd7 11. O-O-O Qa5 12. Kb1 Qc7 13. c5 Be7 14. Ne5 b6 15. g4 bxc5 16. g5 Ne4 17. Nxe4 dxe4 18. g6 fxg6 19. Nxg6 Rg8 20. Nxe7 {1-0 (20) Bauer,C (2618)-Sgnaolin,D (2234) Martigny 2015}) 9. Bxc4 {[%emt 0:03:11]} e5 {[%emt 0:02:19]} 10. Qc2 {[%emt 0:03:55]} (10. Ne4 $142) 10... h6 {[%emt 0:02:11]} 11. Ne4 {[%emt 0:10:13]} Qe7 {[%emt 0:08:01] [#]} 12. a3 {[%emt 0:09:23]} ({White should play} 12. Rh4 $1 $18) 12... exd4 {[%emt 0:17:19]} 13. Nxd4 {[%emt 0:01:57]} Nb6 {[%emt 0:10:49]} 14. Bb5+ {[%emt 0:07:30]} Kf8 {[%emt 0:01:17]} 15. Nxd6 {[%emt 0:02:25]} Qxd6 {[%emt 0:01:37]} 16. Rd1 {[%emt 0:03:05]} Qe7 {[%emt 0:00:42] [#]} (16... Bg4 $16) 17. Rh4 $1 {[%emt 0:01:56]} g5 {[%emt 0:16:18]} 18. Re4 {[%emt 0:01:34]} Qf6 {[%emt 0:00:38]} 19. Qxc7 {[%emt 0:14:46]} Kg7 {[%emt 0:01:10]} 20. Qe5 {[%emt 0:09:00]} a6 {[%emt 0:01:22]} 21. Be2 {[%emt 0:01:54]} Qxe5 {[%emt 0:06:48]} 22. Rxe5 {[%emt 0:00:06]} Kf6 {[%emt 0:01:10]} 23. Rc5 {[%emt 0:01:51]} Na4 {[%emt 0:00:36]} 24. Rc2 {[%emt 0:01:03]} Rd8 {[%emt 0:00:58]} 25. g4 {[%emt 0:03:17]} Rd6 {[%emt 0:02:26]} 26. Bf3 {[%emt 0:01:37]} Rb8 {[%emt 0:00:21]} 27. Rdc1 {[%emt 0:00:46]} Bd7 {[%emt 0:00:52]} 28. b3 {[%emt 0:00:58]} Nb6 {[%emt 0:00:11]} 29. Rc5 {[%emt 0:01:16]} Re8 {[%emt 0:03:21]} 30. Kf1 {[%emt 0:03:53]} ({Stronger than} 30. Bxb7 Rxd4 31. Rc6+ Bxc6 $11) 30... Rc8 {[%emt 0:02:42]} (30... Rb8 $142 31. Ke2 Be6) 31. a4 {[%emt 0:02:37]} Rb8 {[%emt 0:03:00]} 32. Ke2 {[%emt 0:00:26]} Nc8 {[%emt 0:03:28]} 33. Rc7 {[%emt 0:05:37]} b5 {[%emt 0:02:14]} 34. Nc6 {[%emt 0:01:30]} Ra8 {[%emt 0:01:42]} 35. Na5 {[%emt 0:01:04]} Rb8 {[%emt 0:00:10]} 36. Nb7 {[%emt 0:00:13]} Rxb7 {[%emt 0:00:46]} 37. Rxb7 {[%emt 0:00:27]} bxa4 $18 {[%emt 0:00:33]} 38. Rxd7 {[%emt 0:00:28]} Rxd7 {[%emt 0:00:10]} 39. Rxc8 {[%emt 0:00:05]} axb3 {[%emt 0:00:32]} 40. Rb8 {[%emt 0:00:07]} Rc7 {[%emt 0:00:39]} 41. Rxb3 {[%emt 0:30:15]} Rc2+ {[%emt 0:30:06]} 42. Ke1 {[%emt 0:00:15]} Ra2 {[%emt 0:00:05]} 43. Rb6+ {[%emt 0:00:23]} Kg7 {[%emt 0:00:08]} 44. Bd5 {[%emt 0:00:09]} Ra1+ {[%emt 0:00:34]} 45. Ke2 {[%emt 0:00:06]} 1-0

[Event "KAZ Cup Women 2019"]
[Site "Almaty"]
[Date "2019.12.13"]
[Round "2.2"]
[White "Gevorgyan, Maria"]
[Black "Kim, Kristina"]
[Result "0-1"]
[ECO "B06"]
[WhiteElo "2255"]
[BlackElo "1975"]
[Annotator "RC"]
[PlyCount "76"]
[EventDate "2019.12.12"]
[EventType "tourn"]
[EventCountry "KAZ"]
[SourceTitle "playchess.com"]
[Source "ChessBase"]
[SourceQuality "1"]
[TimeControl "40/5400+30:1800+30"]

1. e4 {[%emt 0:00:00]} g6 {[%emt 0:12:06]} 2. d4 {[%emt 0:00:00]} Bg7 {[%emt 0:00:09]} 3. Nc3 {[%emt 0:00:00]} c6 {[%emt 0:00:06]} 4. f4 {[%emt 0:00:19]} d5 {[%emt 0:00:07]} 5. e5 {[%emt 0:00:06]} Nh6 {[%emt 0:00:07]} 6. Nf3 {[%emt 0:00:33]} Bg4 {[%emt 0:00:09]} 7. h3 {[%emt 0:00:29]} Bxf3 {[%emt 0:00:09]} 8. Qxf3 {[%emt 0:00:05]} f6 {[%emt 0:00:11]} 9. Be3 {[%emt 0:02:32]} O-O {[%emt 0:00:10]} 10. exf6 {[%emt 0:00:10]} exf6 {[%emt 0:00:06]} 11. g4 {[%emt 0:00:03]} f5 12. O-O-O Nd7 {[%emt 0:03:36]} 13. Bd3 {[%emt 0:00:28]} Nb6 {[%emt 0:02:08]} 14. Kb1 {[%emt 0:00:06]} Qd7 15. gxf5 {[%emt 0:16:47]} Nxf5 {[%emt 0:00:38]} 16. Bxf5 {[%emt 0:00:20]} Qxf5 {[%emt 0:00:23]} 17. h4 Nc4 {[%emt 0:01:30]} 18. Bc1 {[%emt 0:00:36]} Rae8 {[%emt 0:04:46]} 19. h5 {[%emt 0:06:46]} b5 {[%emt 0:00:11]} 20. hxg6 {[%emt 0:08:48]} hxg6 21. Rh2 {[%emt 0:03:08]} Re6 {[%emt 0:09:48]} 22. Ne2 Rfe8 {[%emt 0:02:24]} 23. Ng3 {[%emt 0:01:53]} Qf6 {[%emt 0:03:42]} 24. f5 Re1 {[%emt 0:00:08]} 25. Rxe1 {[%emt 0:31:40]} Rxe1 {[%emt 0:02:19]} 26. Qf2 {[%emt 0:01:20]} Rd1 27. b3 Qg5 {[%emt 0:13:30]} 28. Ne2 {[%emt 0:09:37]} Qd2 29. bxc4 {[%emt 0:04:20]} Qb4+ {[%emt 0:01:10]} 30. Ka1 {[%emt 0:00:01]} Bxd4+ {[%emt 0:00:14]} 31. Qxd4 {[%emt 0:00:05]} Rxd4 {[%emt 0:00:04]} 32. c3 {[%emt 0:03:51]} Qd6 33. Rg2 {[%emt 0:00:12]} Re4 {[%emt 0:03:43]} 34. Nd4 Rxd4 35. cxd4 {[%emt 0:01:43]} Qb4 {[%emt 0:03:14]} 36. Rxg6+ {[%emt 0:01:34]} Kf7 {[%emt 0:00:55]} 37. Rxc6 {[%emt 0:00:30]} Qc3+ {[%emt 0:01:22] Kb2 Qxd4+ Kc2 Qe4+ Kb2 dxc4 Ra6 Qd4+ Kc2 b4 Bd2 b3+ axb3 cxb3+ Kxb3 Qd3+ Bc3 Qxa6 f6 Ke6 Kc2 Kd5 Kd2 Ke4 Kc2 Qa2+} 38. Bb2 {[%emt 0:07:25]} a5 {[%emt 0:00:10]} 0-1

[Event "KAZ Cup Women 2019"]
[Site "Almaty"]
[Date "2019.12.13"]
[Round "2.3"]
[White "Nakhbayeva, Guliskhan"]
[Black "Balabayeva, Xeniya"]
[Result "1-0"]
[ECO "A43"]
[WhiteElo "2296"]
[BlackElo "2119"]
[Annotator "RC"]
[PlyCount "73"]
[EventDate "2019.12.12"]
[EventType "tourn"]
[EventCountry "KAZ"]
[SourceTitle "playchess.com"]
[Source "ChessBase"]
[SourceQuality "1"]
[TimeControl "40/5400+30:1800+30"]

1. d4 {[%emt 0:00:00]} Nf6 {[%emt 0:05:47]} 2. c4 {[%emt 0:00:00]} c5 {[%emt 0:00:04]} 3. d5 {[%emt 0:00:00]} d6 {[%emt 0:00:07]} 4. Nc3 {[%emt 0:01:12]} g6 {[%emt 0:00:00]} 5. e4 {[%emt 0:00:30]} Bg7 {[%emt 0:00:41]} 6. Be2 {[%emt 0:05:48]} O-O {[%emt 0:00:30]} 7. Be3 {[%emt 0:00:04]} e6 {[%emt 0:01:55]} 8. Nf3 {[%emt 0:01:04]} Re8 {[%emt 0:13:41]} 9. Nd2 {[%emt 0:00:42]} Na6 {[%emt 0:01:01]} 10. O-O {[%emt 0:00:30]} Nc7 {[%emt 0:00:30]} 11. a4 {[%emt 0:06:09]} a5 {[%emt 0:12:36]} 12. Bg5 {[%emt 0:01:08]} h6 {[%emt 0:08:39]} 13. Bh4 {[%emt 0:03:44]} e5 {[%emt 0:00:30]} 14. Bg3 {[%emt 0:03:30]} Nh7 15. f4 {[%emt 0:00:06]} exf4 {[%emt 0:21:14]} 16. Bxf4 {[%emt 0:11:11]} Qe7 17. Kh1 f5 {[%emt 0:12:59]} 18. exf5 {[%emt 0:06:05]} Bxf5 {[%emt 0:03:01]} 19. Bg4 {[%emt 0:02:24]} Bd3 20. Rg1 {[%emt 0:08:25]} Nf6 {[%emt 0:11:52]} 21. Bf3 {[%emt 0:10:47]} Nd7 {[%emt 0:03:37]} 22. Qb3 Ne5 {[%emt 0:01:21]} 23. Rae1 {[%emt 0:01:52]} Qf7 {[%emt 0:00:41]} 24. Bg3 {[%emt 0:01:31]} g5 {[%emt 0:00:35]} 25. Be4 {[%emt 0:01:44]} Bxe4 26. Ncxe4 {[%emt 0:02:36]} Qd7 {[%emt 0:01:02]} 27. Rgf1 {[%emt 0:00:52]} Kh8 {[%emt 0:00:34]} 28. Nf6 {[%emt 0:02:57]} Bxf6 {[%emt 0:00:29]} 29. Rxf6 {[%emt 0:00:01]} Ng4 {[%emt 0:00:23]} 30. Rff1 {[%emt 0:01:27]} h5 {[%emt 0:00:36]} 31. Ne4 h4 {[%emt 0:00:32]} 32. Bxd6 {[%emt 0:03:07]} Na6 {[%emt 0:00:30]} 33. Qc3+ Kh7 {[%emt 0:00:25]} 34. Nxg5+ {[%emt 0:01:22]} Kg6 35. Nf7 {[%emt 0:04:23]} Rxe1 {[%emt 0:00:48]} 36. Qxe1 {[%emt 0:00:08]} Re8 {[%emt 0:00:14]} 37. Qxh4 {[%emt 0:00:19]} 1-0